fUST/lending_fUST_20250611
["ID","MTS","AMOUNT","RATE_DAILY","PERIOD"]
[365273921,1749571860845,-1289.03,0.00024109,4]
[365273922,1749571860856,-1286.65,0.00024109,4]
[365273923,1749571860866,-460.0,0.00024109,2]
[365273924,1749571860876,-1474.83,0.00024109,4]
[365273925,1749571860886,-1746.86,0.00024109,4]
[365273926,1749571860896,-460.0,0.00024109,4]
[365273927,1749571860908,-460.0,0.00024109,4]
[365273928,1749571860917,-624.51,0.00024109,4]
[365273929,1749571860928,-1626.79,0.00024109,4]
[365273930,1749571860939,-770.16,0.00024109,4]
[365273931,1749571860951,-989.83,0.00024109,4]
[365273932,1749571860964,-1241.13,0.00024109,4]
[365273933,1749571860974,-460.0,0.00024109,4]
[365273934,1749571860985,-371.78454838,0.00024109,4]
[365273935,1749571860995,-831.99,0.00024109,4]
[365273936,1749571861006,-565.44,0.00024109,4]
[365273937,1749571861016,-209.84900211,0.00024176,10]
[365273938,1749571861028,-52360.61405578,0.000242,7]
[365273939,1749571861045,-31073.59594422,0.000242,7]
[365273940,1749571861055,-151.0,0.000242,9]
[365273941,1749571861066,-159.173599,0.00024206,15]
[365273942,1749571861077,-5000.0,0.00024247,2]
[365273943,1749571861087,-622.24597752,0.0002426,2]
[365273944,1749571861098,-443.72833664,0.00024261,2]
[365273945,1749571861107,-209.84900211,0.00024279,10]
[365273946,1749571861117,-151.0,0.000243,6]
[365273947,1749571861127,-1346.701887,0.00024324,3]
[365273948,1749571861136,-209.84900211,0.00024383,11]
[365273949,1749571861146,-460.0,0.00024383,4]
[365273950,1749571861157,-460.0,0.00024383,4]
[365273951,1749571861167,-658.36,0.00024383,4]
[365273952,1749571861178,-496.81,0.00024383,4]
[365273953,1749571861188,-460.0,0.00024383,4]
[365273954,1749571861198,-1674.38,0.00024383,4]
[365273955,1749571861208,-699.3,0.00024383,4]
[365273956,1749571861217,-986.24,0.00024383,4]
[365273957,1749571861228,-483.88,0.00024383,4]
[365273958,1749571861239,-748.45,0.00024383,4]
[365273959,1749571861250,-1289.03,0.00024383,4]
[365273960,1749571861259,-1286.65,0.00024383,4]
[365273961,1749571861270,-460.0,0.00024383,2]
[365273962,1749571861281,-1474.83,0.00024383,4]
[365273963,1749571861291,-1746.86,0.00024383,4]
[365273964,1749571861301,-460.0,0.00024383,4]
[365273965,1749571861311,-460.0,0.00024383,4]
[365273966,1749571861321,-624.51,0.00024383,4]
[365273967,1749571861332,-1626.79,0.00024383,4]
[365273968,1749571861343,-770.16,0.00024383,4]
[365273969,1749571861353,-989.83,0.00024383,4]
[365273970,1749571861362,-1241.13,0.00024383,4]
[365273971,1749571861372,-460.0,0.00024383,4]
[365273972,1749571861382,-831.99,0.00024383,4]
[365273973,1749571861391,-565.44,0.00024383,4]
[365273974,1749571861401,-209.84900211,0.00024486,11]
[365273975,1749571861411,-151.0,0.000245,7]
[365273976,1749571861420,-2000.0,0.000245,4]
[365273977,1749571861430,-500.0,0.000245,2]
[365273978,1749571861439,-215.0738,0.0002452,2]
[365273979,1749571861449,-800.0,0.00024532,2]
[365273980,1749571861459,-800.0,0.00024537,2]
[365273981,1749571861469,-443.72833664,0.00024538,2]
[365273982,1749571861478,-206.0,0.0002454,2]
[365273983,1749571861488,-209.84900211,0.0002459,11]
[365273984,1749571861498,-800.0,0.00024646,2]
[365273985,1749571861507,-460.0,0.00024657,4]
[365273986,1749571861517,-460.0,0.00024657,4]
[365273987,1749571861527,-658.36,0.00024657,4]
[365273988,1749571861536,-496.81,0.00024657,4]
[365273989,1749571861547,-460.0,0.00024657,4]
[365273990,1749571861557,-1674.38,0.00024657,4]
[365273991,1749571861567,-699.3,0.00024657,4]
[365273992,1749571861576,-986.24,0.00024657,4]
[365273993,1749571861587,-483.88,0.00024657,4]
[365273994,1749571861597,-748.45,0.00024657,4]
[365273995,1749571861607,-1289.03,0.00024657,4]
[365273996,1749571861617,-1286.65,0.00024657,4]
[365273997,1749571861627,-460.0,0.00024657,2]
[365273998,1749571861636,-1474.83,0.00024657,4]
[365273999,1749571861646,-1746.86,0.00024657,4]
[365274000,1749571861655,-460.0,0.00024657,4]
[365274001,1749571861665,-460.0,0.00024657,4]
[365274002,1749571861674,-624.51,0.00024657,4]
[365274003,1749571861684,-1626.79,0.00024657,4]
[365274004,1749571861694,-770.16,0.00024657,4]
[365274005,1749571861710,-989.83,0.00024657,4]
[365274006,1749571861719,-1241.13,0.00024657,4]
[365274007,1749571861729,-460.0,0.00024657,4]
[365274008,1749571861739,-831.99,0.00024657,4]
[365274009,1749571861749,-565.44,0.00024657,4]
[365274010,1749571861759,-200.0,0.00024658,15]
[365274011,1749571861768,-800.0,0.00024687,2]
[365274012,1749571861778,-209.84900211,0.00024693,11]
[365274013,1749571861787,-2000.0,0.000247,2]
[365274014,1749571861797,-2000.0,0.000247,2]
[365274015,1749571861807,-2000.0,0.000247,2]
[365274016,1749571861817,-765.1657488,0.00024756,2]
[365274017,1749571861830,-2058.6326594,0.00024756,2]
[365274018,1749571861840,-736.5696683,0.00024761,2]
[365274022,1749572034908,964.3,0.00024862,60]
[365274031,1749572337911,243.836712,0.00013699,2]
[365274041,1749572686007,500.0,0.00013699,2]
[365274045,1749572725707,500.0,0.00013699,2]
[365274052,1749572914350,290074.87,0.00024851,60]
[365274648,1749573031938,-300.0,0.00018999,2]
[365274650,1749573031948,-2903.9751584,0.00019,2]
[365274867,1749573038437,-12957.49112594,0.00019,2]
[365274869,1749573038447,-1003.10853363,0.000195,2]
[365274871,1749573038457,-165.842008,0.00020026,2]
[365274873,1749573038467,-1038.8,0.00020163,2]
[365274875,1749573038477,-243.836712,0.00020187,2]
[365274877,1749573038487,-522.0,0.00020231,2]
[365274879,1749573038496,-760.2,0.00020345,2]
[365274881,1749573038506,-206.11661612,0.000206,3]
[365274882,1749573038517,-206.11661604,0.000206,3]
[365274883,1749573038526,-206.11661604,0.000206,3]
[365274884,1749573038537,-206.11661604,0.000206,3]
[365274885,1749573038546,-206.11661604,0.000206,3]
[365274887,1749573038555,-420.0,0.00020709,2]
[365274889,1749573038565,-206.11661604,0.00020762,3]
[365274891,1749573038575,-206.11661604,0.00020934,4]
[365274893,1749573038584,-500.0,0.00021014,2]
[365274895,1749573038593,-500.0,0.00021073,2]
[365274897,1749573038603,-503.39334109,0.00021073,2]
[365274899,1749573038612,-500.95406167,0.00021073,2]
[365274901,1749573038621,-500.0,0.00021094,2]
[365274903,1749573038630,-500.0,0.00021094,2]
[365274904,1749573038639,-500.0,0.00021094,2]
[365274905,1749573038648,-573.24055137,0.00021094,2]
[365274907,1749573038658,-272.98303685,0.00021094,2]
[365274909,1749573038667,-176.612,0.00021094,2]
[365274911,1749573038676,-430.0,0.00021095,4]
[365274913,1749573038686,-430.0,0.00021095,4]
[365274915,1749573038696,-440.19303924,0.00021095,4]
[365274917,1749573038705,-424.53378172,0.00021095,4]
[365274919,1749573038715,-423.30218969,0.00021095,4]
[365274921,1749573038725,-460.0,0.00021095,4]
[365274923,1749573038735,-460.0,0.00021095,4]
[365274925,1749573038744,-430.0,0.00021095,4]
[365274927,1749573038754,-378.61590313,0.00021095,4]
[365274929,1749573038764,-430.0,0.00021095,4]
[365274931,1749573038773,-430.0,0.00021095,4]
[365274933,1749573038782,-460.0,0.00021095,4]
[365274935,1749573038791,-400.0,0.00021095,4]
[365274937,1749573038801,-460.0,0.00021095,4]
[365274939,1749573038811,-384.07300146,0.00021095,4]
[365274941,1749573038820,-460.0,0.00021095,4]
[365274943,1749573038830,-460.0,0.00021095,4]
[365274945,1749573038840,-460.0,0.00021095,4]
[365274947,1749573038849,-460.0,0.00021095,4]
[365274949,1749573038859,-460.0,0.00021095,4]
[365274951,1749573038868,-460.0,0.00021095,4]
[365274953,1749573038877,-460.0,0.00021095,4]
[365274955,1749573038886,-460.0,0.00021095,4]
[365274957,1749573038896,-460.0,0.00021095,4]
[365274959,1749573038905,-581.83222827,0.00021095,4]
[365274978,1749573039080,-460.0,0.00021095,4]
[365274980,1749573039089,-460.0,0.00021095,4]
[365274982,1749573039099,-460.0,0.00021095,4]
[365274984,1749573039110,-460.0,0.00021095,4]
[365274986,1749573039119,-460.0,0.00021095,4]
[365274988,1749573039128,-281.06573425,0.00021095,4]
[365274990,1749573039137,-460.0,0.00021095,4]
[365274991,1749573039147,-460.0,0.00021095,4]
[365274993,1749573039156,-440.0,0.00021095,4]
[365274995,1749573039167,-460.0,0.00021095,4]
[365274997,1749573039176,-460.0,0.00021095,4]
[365274999,1749573039186,-460.0,0.00021095,4]
[365275001,1749573039196,-460.0,0.00021095,4]
[365275003,1749573039205,-460.0,0.00021095,4]
[365275005,1749573039215,-266.01322531,0.00021095,4]
[365275007,1749573039224,-344.22252767,0.00021095,4]
[365275009,1749573039234,-460.0,0.00021095,4]
[365275011,1749573039244,-175.67092659,0.00021095,4]
[365275012,1749573039254,-410.84202799,0.00021095,4]
[365275013,1749573039263,-460.0,0.00021095,4]
[365275014,1749573039273,-460.0,0.00021095,4]
[365275015,1749573039285,-274.86,0.00021095,4]
[365275016,1749573039295,-460.0,0.00021095,4]
[365275017,1749573039305,-460.0,0.00021095,4]
[365275018,1749573039315,-460.0,0.00021095,4]
[365275019,1749573039325,-460.0,0.00021095,4]
[365275020,1749573039335,-460.0,0.00021095,4]
[365275022,1749573039345,-460.0,0.00021095,4]
[365275023,1749573039354,-460.0,0.00021095,4]
[365275024,1749573039365,-460.0,0.00021095,4]
[365275025,1749573039375,-460.0,0.00021095,4]
[365275026,1749573039386,-460.0,0.00021095,4]
[365275027,1749573039396,-440.0,0.00021095,4]
[365275028,1749573039406,-410.0,0.00021095,4]
[365275029,1749573039418,-460.0,0.00021095,4]
[365275030,1749573039428,-460.0,0.00021095,4]
[365275031,1749573039441,-460.0,0.00021095,4]
[365275032,1749573039452,-460.0,0.00021095,4]
[365275033,1749573039462,-440.0,0.00021095,4]
[365275034,1749573039473,-440.0,0.00021095,4]
[365275035,1749573039484,-558.45,0.00021095,4]
[365275036,1749573039494,-460.0,0.00021095,4]
[365275038,1749573039504,-460.0,0.00021095,4]
[365275040,1749573039515,-460.0,0.00021095,4]
[365275042,1749573039525,-400.0,0.00021095,4]
[365275044,1749573039536,-460.0,0.00021095,4]
[365275046,1749573039547,-440.0,0.00021095,4]
[365275048,1749573039557,-460.0,0.00021095,4]
[365275050,1749573039566,-460.0,0.00021095,4]
[365275052,1749573039576,-460.0,0.00021095,4]
[365275054,1749573039587,-460.0,0.00021095,4]
[365275056,1749573039598,-460.0,0.00021095,4]
[365275058,1749573039608,-643.14,0.00021095,4]
[365275060,1749573039619,-460.0,0.00021095,4]
[365275061,1749573039629,-460.0,0.00021095,4]
[365275062,1749573039639,-460.0,0.00021095,4]
[365275063,1749573039650,-372.110366,0.00021095,2]
[365275064,1749573039660,-460.0,0.00021095,4]
[365275065,1749573039671,-460.0,0.00021095,4]
[365275066,1749573039681,-526.97,0.00021095,4]
[365275067,1749573039692,-460.0,0.00021095,4]
[365275068,1749573039702,-460.0,0.00021095,4]
[365275069,1749573039712,-420.0,0.00021095,4]
[365275070,1749573039722,-460.0,0.00021095,4]
[365275071,1749573039731,-460.0,0.00021095,4]
[365275072,1749573039740,-460.0,0.00021095,4]
[365275073,1749573039750,-460.0,0.00021095,4]
[365275074,1749573039760,-293.06525187,0.00021095,4]
[365275076,1749573039770,-460.0,0.00021095,4]
[365275077,1749573039779,-440.0,0.00021095,4]
[365275079,1749573039788,-460.0,0.00021095,4]
[365275081,1749573039798,-460.0,0.00021095,4]
[365275083,1749573039807,-522.5,0.00021095,4]
[365275085,1749573039816,-460.0,0.00021095,4]
[365275087,1749573039826,-460.0,0.00021095,4]
[365275089,1749573039835,-460.0,0.00021095,4]
[365275091,1749573039844,-935.26,0.00021095,4]
[365275093,1749573039854,-736.95,0.00021095,4]
[365275095,1749573039863,-429.83177003,0.00021095,4]
[365275097,1749573039873,-460.0,0.00021095,4]
[365275099,1749573039883,-460.0,0.00021095,4]
[365275101,1749573039893,-1381.54,0.00021095,4]
[365275103,1749573039902,-460.0,0.00021095,2]
[365275105,1749573039912,-588.52,0.00021095,4]
[365275107,1749573039921,-460.0,0.00021095,4]
[365275109,1749573039933,-460.0,0.00021095,4]
[365275111,1749573039944,-460.0,0.00021095,4]
[365275113,1749573039954,-460.0,0.00021095,4]
[365275115,1749573039964,-460.0,0.00021095,4]
[365275117,1749573039975,-543.87,0.00021095,4]
[365275119,1749573039985,-390.0,0.00021095,4]
[365275121,1749573039994,-430.0,0.00021095,4]
[365275123,1749573040005,-440.0,0.00021095,4]
[365275125,1749573040014,-460.0,0.00021095,4]
[365275127,1749573040023,-430.0,0.00021095,4]
[365275128,1749573040032,-430.0,0.00021095,4]
[365275129,1749573040041,-440.0,0.00021095,4]
[365275130,1749573040051,-460.0,0.00021095,4]
[365275131,1749573040061,-580.31335199,0.00021095,4]
[365275133,1749573040071,-460.0,0.00021095,4]
[365275135,1749573040080,-440.0,0.00021095,4]
[365275137,1749573040089,-460.0,0.00021095,4]
[365275139,1749573040098,-460.0,0.00021095,4]
[365275141,1749573040108,-460.0,0.00021095,4]
[365275142,1749573040117,-977.2,0.00021095,4]
[365275143,1749573040126,-460.0,0.00021095,4]
[365275144,1749573040135,-1069.48,0.00021095,4]
[365275145,1749573040145,-460.0,0.00021095,4]
[365275146,1749573040154,-460.0,0.00021095,4]
[365275147,1749573040164,-460.0,0.00021095,4]
[365275148,1749573040173,-440.0,0.00021095,4]
[365275149,1749573040183,-460.0,0.00021095,4]
[365275150,1749573040193,-460.0,0.00021095,4]
[365275151,1749573040204,-1413.48,0.00021095,4]
[365275152,1749573040213,-460.0,0.00021095,4]
[365275153,1749573040223,-460.0,0.00021095,4]
[365275154,1749573040233,-575.37,0.00021095,4]
[365275155,1749573040242,-460.0,0.00021095,4]
[365275156,1749573040252,-460.0,0.00021095,4]
[365275157,1749573040262,-350.0,0.00021095,4]
[365275158,1749573040272,-1457.97,0.00021095,4]
[365275159,1749573040284,-460.0,0.00021095,4]
[365275160,1749573040295,-460.0,0.00021095,4]
[365275161,1749573040304,-460.0,0.00021095,4]
[365275162,1749573040315,-460.0,0.00021095,4]
[365275163,1749573040326,-410.0,0.00021095,4]
[365275164,1749573040337,-460.0,0.00021095,4]
[365275165,1749573040347,-460.0,0.00021095,4]
[365275166,1749573040357,-282.06174206,0.00021095,4]
[365275167,1749573040367,-863.37,0.00021095,4]
[365275168,1749573040377,-460.0,0.00021095,4]
[365275169,1749573040387,-1214.53,0.00021095,4]
[365275170,1749573040396,-1346.1,0.00021095,4]
[365275171,1749573040405,-430.0,0.00021095,4]
[365275172,1749573040416,-206.11661604,0.00021107,4]
[365275173,1749573040426,-206.11661604,0.00021279,5]
[365275174,1749573040437,-1520.41,0.00021314,2]
[365275175,1749573040447,-380.0,0.00021369,4]
[365275176,1749573040456,-460.0,0.00021369,4]
[365275177,1749573040466,-370.0,0.00021369,4]
[365275178,1749573040476,-251.01586478,0.00021369,4]
[365275179,1749573040485,-460.0,0.00021369,4]
[365275180,1749573040494,-460.0,0.00021369,4]
[365275181,1749573040504,-460.0,0.00021369,4]
[365275182,1749573040513,-397.35330721,0.00021369,4]
[365275183,1749573040522,-460.0,0.00021369,4]
[365275184,1749573040531,-420.0,0.00021369,4]
[365275185,1749573040541,-460.0,0.00021369,4]
[365275186,1749573040550,-460.0,0.00021369,4]
[365275187,1749573040560,-460.0,0.00021369,4]
[365275188,1749573040569,-300.0,0.00021369,4]
[365275189,1749573040578,-460.0,0.00021369,4]
[365275190,1749573040587,-296.54173381,0.00021369,4]
[365275191,1749573040596,-370.0,0.00021369,4]
[365275192,1749573040605,-460.0,0.00021369,4]
[365275193,1749573040614,-460.0,0.00021369,4]
[365275194,1749573040623,-460.0,0.00021369,4]
[365275195,1749573040633,-420.0,0.00021369,4]
[365275196,1749573040642,-460.0,0.00021369,4]
[365275197,1749573040651,-460.0,0.00021369,4]
[365275198,1749573040660,-420.0,0.00021369,4]
[365275199,1749573040670,-460.0,0.00021369,4]
[365275200,1749573040680,-460.0,0.00021369,4]
[365275201,1749573040690,-380.0,0.00021369,4]
[365275202,1749573040700,-420.0,0.00021369,4]
[365275203,1749573040709,-555.46,0.00021369,4]
[365275204,1749573040718,-460.0,0.00021369,4]
[365275205,1749573040727,-460.0,0.00021369,4]
[365275206,1749573040736,-460.0,0.00021369,4]
[365275207,1749573040745,-460.0,0.00021369,4]
[365275208,1749573040754,-420.0,0.00021369,4]
[365275209,1749573040764,-420.0,0.00021369,4]
[365275210,1749573040773,-460.0,0.00021369,4]
[365275211,1749573040783,-460.0,0.00021369,4]
[365275212,1749573040792,-460.0,0.00021369,4]
[365275213,1749573040801,-460.0,0.00021369,4]
[365275214,1749573040810,-460.0,0.00021369,4]
[365275215,1749573040819,-460.0,0.00021369,4]
[365275216,1749573040829,-460.0,0.00021369,4]
[365275217,1749573040838,-558.45,0.00021369,4]
[365275218,1749573040847,-460.0,0.00021369,4]
[365275219,1749573040857,-460.0,0.00021369,4]
[365275220,1749573040867,-460.0,0.00021369,4]
[365275221,1749573040876,-460.0,0.00021369,4]
[365275222,1749573040885,-460.0,0.00021369,4]
[365275223,1749573040894,-460.0,0.00021369,4]
[365275224,1749573040903,-460.0,0.00021369,4]
[365275225,1749573040913,-420.0,0.00021369,4]
[365275226,1749573040922,-460.0,0.00021369,4]
[365275227,1749573040932,-643.14,0.00021369,4]
[365275228,1749573040942,-460.0,0.00021369,4]
[365275229,1749573040951,-460.0,0.00021369,4]
[365275230,1749573040962,-460.0,0.00021369,4]
[365275231,1749573040972,-460.0,0.00021369,4]
[365275232,1749573040981,-460.0,0.00021369,4]
[365275233,1749573040990,-526.97,0.00021369,4]
[365275234,1749573041000,-460.0,0.00021369,4]
[365275235,1749573041015,-420.0,0.00021369,4]
[365275236,1749573041024,-460.0,0.00021369,4]
[365275237,1749573041033,-310.0,0.00021369,4]
[365275238,1749573041043,-460.0,0.00021369,4]
[365275239,1749573041051,-460.0,0.00021369,4]
[365275240,1749573041062,-460.0,0.00021369,4]
[365275241,1749573041071,-460.0,0.00021369,4]
[365275242,1749573041080,-460.0,0.00021369,4]
[365275243,1749573041090,-522.5,0.00021369,4]
[365275244,1749573041100,-460.0,0.00021369,4]
[365275245,1749573041109,-460.0,0.00021369,4]
[365275246,1749573041120,-420.0,0.00021369,4]
[365275247,1749573041132,-935.26,0.00021369,4]
[365275248,1749573041144,-736.95,0.00021369,4]
[365275249,1749573041154,-460.0,0.00021369,4]
[365275250,1749573041163,-460.0,0.00021369,4]
[365275251,1749573041173,-1381.54,0.00021369,4]
[365275252,1749573041184,-460.0,0.00021369,2]
[365275253,1749573041193,-588.52,0.00021369,4]
[365275254,1749573041203,-460.0,0.00021369,4]
[365275255,1749573041213,-460.0,0.00021369,4]
[365275256,1749573041222,-462.59367022,0.00021369,4]
[365275257,1749573041232,-460.0,0.00021369,4]
[365275258,1749573041243,-460.0,0.00021369,4]
[365275259,1749573041253,-543.87,0.00021369,4]
[365275260,1749573041263,-460.0,0.00021369,4]
[365275261,1749573041273,-460.0,0.00021369,4]
[365275262,1749573041283,-460.0,0.00021369,4]
[365275263,1749573041295,-460.0,0.00021369,4]
[365275264,1749573041305,-460.0,0.00021369,4]
[365275265,1749573041314,-420.0,0.00021369,4]
[365275266,1749573041324,-977.2,0.00021369,4]
[365275267,1749573041334,-460.0,0.00021369,4]
[365275268,1749573041343,-1069.48,0.00021369,4]
[365275269,1749573041353,-420.0,0.00021369,4]
[365275270,1749573041364,-460.0,0.00021369,4]
[365275271,1749573041376,-460.0,0.00021369,4]
[365275272,1749573041386,-395.41311871,0.00021369,4]
[365275273,1749573041395,-460.0,0.00021369,4]
[365275274,1749573041405,-1413.48,0.00021369,4]
[365275275,1749573041415,-557.06430385,0.00021369,4]
[365275276,1749573041424,-460.0,0.00021369,4]
[365275277,1749573041435,-575.37,0.00021369,4]
[365275278,1749573041444,-460.0,0.00021369,4]
[365275279,1749573041453,-420.0,0.00021369,4]
[365275280,1749573041465,-1457.97,0.00021369,4]
[365275281,1749573041474,-460.0,0.00021369,4]
[365275282,1749573041483,-420.0,0.00021369,4]
[365275283,1749573041493,-420.0,0.00021369,4]
[365275284,1749573041502,-460.0,0.00021369,4]
[365275285,1749573041511,-473.72124398,0.00021369,4]
[365275286,1749573041520,-460.0,0.00021369,4]
[365275287,1749573041529,-863.37,0.00021369,4]
[365275288,1749573041539,-460.0,0.00021369,4]
[365275289,1749573041548,-1214.53,0.00021369,4]
[365275290,1749573041558,-1346.1,0.00021369,4]
[365275291,1749573041568,-206.11661604,0.00021452,5]
[365275292,1749573041578,-186.32093111,0.00021543,2]
[365275293,1749573041595,-500.0,0.00021621,2]
[365275294,1749573041605,-206.11661604,0.00021624,5]
[365275295,1749573041615,-500.0,0.00021627,2]
[365275296,1749573041633,-400.0,0.00021643,4]
[365275297,1749573041642,-320.0,0.00021643,4]
[365275298,1749573041652,-424.99,0.00021643,4]
[365275299,1749573041661,-416.05839542,0.00021643,4]
[365275300,1749573041671,-262.00124718,0.00021643,4]
[365275301,1749573041680,-390.0,0.00021643,4]
[365275302,1749573041690,-400.0,0.00021643,4]
[365275303,1749573041700,-350.0,0.00021643,4]
[365275304,1749573041709,-400.0,0.00021643,4]
[365275305,1749573041718,-460.0,0.00021643,4]
[365275306,1749573041728,-523.66,0.00021643,4]
[365275307,1749573041737,-562.62763877,0.00021643,4]
[365275308,1749573041747,-400.0,0.00021643,4]
[365275309,1749573041756,-390.06226957,0.00021643,4]
[365275310,1749573041765,-460.0,0.00021643,4]
[365275311,1749573041774,-320.0,0.00021643,4]
[365275312,1749573041784,-460.0,0.00021643,4]
[365275313,1749573041793,-400.0,0.00021643,4]
[365275314,1749573041802,-460.0,0.00021643,4]
[365275315,1749573041811,-460.0,0.00021643,4]
[365275316,1749573041820,-460.0,0.00021643,4]
[365275317,1749573041829,-400.0,0.00021643,4]
[365275318,1749573041838,-460.0,0.00021643,4]
[365275319,1749573041847,-460.0,0.00021643,4]
[365275320,1749573041856,-390.0,0.00021643,4]
[365275321,1749573041865,-460.0,0.00021643,4]
[365275322,1749573041875,-460.0,0.00021643,4]
[365275323,1749573041884,-558.45,0.00021643,4]
[365275324,1749573041892,-460.0,0.00021643,4]
[365275325,1749573041902,-460.0,0.00021643,4]
[365275326,1749573041911,-460.0,0.00021643,4]
[365275327,1749573041919,-460.0,0.00021643,4]
[365275328,1749573041928,-460.0,0.00021643,4]
[365275329,1749573041939,-460.0,0.00021643,4]
[365275330,1749573041948,-460.0,0.00021643,4]
[365275331,1749573041957,-460.0,0.00021643,4]
[365275332,1749573041967,-643.14,0.00021643,4]
[365275333,1749573041977,-420.0,0.00021643,4]
[365275334,1749573041986,-513.00438516,0.00021643,4]
[365275335,1749573041995,-460.0,0.00021643,4]
[365275336,1749573042005,-460.0,0.00021643,4]
[365275337,1749573042014,-460.0,0.00021643,4]
[365275338,1749573042024,-526.97,0.00021643,4]
[365275339,1749573042033,-400.0,0.00021643,4]
[365275340,1749573042043,-400.0,0.00021643,4]
[365275341,1749573042052,-460.0,0.00021643,4]
[365275342,1749573042061,-460.0,0.00021643,4]
[365275343,1749573042071,-460.0,0.00021643,4]
[365275344,1749573042080,-380.0,0.00021643,4]
[365275345,1749573042089,-400.0,0.00021643,4]
[365275346,1749573042100,-522.5,0.00021643,4]
[365275347,1749573042110,-460.0,0.00021643,4]
[365275348,1749573042119,-400.0,0.00021643,4]
[365275349,1749573042128,-935.26,0.00021643,4]
[365275350,1749573042138,-736.95,0.00021643,4]
[365275351,1749573042147,-460.0,0.00021643,4]
[365275352,1749573042157,-460.0,0.00021643,4]
[365275353,1749573042167,-1381.54,0.00021643,4]
[365275354,1749573042177,-460.0,0.00021643,2]
[365275355,1749573042189,-588.52,0.00021643,4]
[365275356,1749573042199,-400.0,0.00021643,4]
[365275357,1749573042208,-400.0,0.00021643,4]
[365275358,1749573042218,-460.0,0.00021643,4]
[365275359,1749573042228,-400.0,0.00021643,4]
[365275360,1749573042237,-543.87,0.00021643,4]
[365275361,1749573042247,-460.0,0.00021643,4]
[365275362,1749573042256,-400.0,0.00021643,4]
[365275363,1749573042266,-460.0,0.00021643,4]
[365275364,1749573042276,-460.0,0.00021643,4]
[365275365,1749573042286,-400.0,0.00021643,4]
[365275366,1749573042299,-977.2,0.00021643,4]
[365275367,1749573042309,-330.0,0.00021643,4]
[365275368,1749573042319,-1069.48,0.00021643,4]
[365275369,1749573042328,-460.0,0.00021643,4]
[365275370,1749573042339,-460.0,0.00021643,4]
[365275371,1749573042348,-460.0,0.00021643,4]
[365275372,1749573042358,-1413.48,0.00021643,4]
[365275375,1749573042367,-460.0,0.00021643,4]
[365275376,1749573042377,-575.37,0.00021643,4]
[365275377,1749573042387,-460.0,0.00021643,4]
[365275378,1749573042397,-1457.97,0.00021643,4]
[365275379,1749573042406,-460.0,0.00021643,4]
[365275380,1749573042415,-460.0,0.00021643,4]
[365275381,1749573042425,-460.0,0.00021643,4]
[365275382,1749573042435,-863.37,0.00021643,4]
[365275383,1749573042445,-460.0,0.00021643,4]
[365275384,1749573042455,-1214.53,0.00021643,4]